bitfinex/quotes_ETHUSD_20240701
["timestamp","ask_amount","ask_price","bid_price","bid_amount"]
[1719793629486,4.39330827,3445.3,3444.7,1.38301533]
[1719793629487,3.0,3445.3,3444.7,1.38301533]
[1719793629664,0.21077362,3445.2,3444.7,1.38301533]
[1719793629853,0.21077362,3445.2,3444.7,1.30823738]
[1719793630058,0.21077362,3445.2,3444.7,0.48123738]
[1719793630595,3.0,3445.3,3444.7,0.48123738]
[1719793630880,0.21078601,3445.2,3444.7,0.48123738]
[1719793631191,3.0,3445.3,3444.7,0.48123738]
[1719793631394,0.21078105,3445.2,3444.7,0.48123738]
[1719793631554,0.21078105,3445.2,3444.6,3.272]
[1719793633279,0.827,3445.0,3444.6,3.272]
[1719793634089,0.827,3445.2,3444.6,3.272]
[1719793634295,0.2107766,3445.1,3444.6,3.272]
[1719793636483,0.827,3445.2,3444.6,3.272]
[1719793636713,0.21078489,3445.1,3444.6,3.272]
[1719793637765,3.0,3445.3,3444.6,3.272]
[1719793637959,0.21079569,3445.2,3444.6,3.272]
[1719793639814,3.0,3445.3,3444.6,3.272]
[1719793640108,0.21083489,3445.2,3444.6,3.272]
[1719793642394,2.20581665,3445.2,3444.6,3.272]
[1719793642596,0.21083489,3445.1,3444.6,3.272]
[1719793642803,1.99498176,3445.2,3444.6,3.272]
[1719793642993,0.21088015,3445.1,3444.6,3.272]
[1719793645921,1.99498176,3445.2,3444.6,3.272]
[1719793646087,0.21086645,3445.1,3444.6,3.272]
[1719793649220,1.99498176,3445.2,3444.6,3.272]
[1719793649414,0.21082375,3445.1,3444.6,3.272]
[1719793651857,3.0,3445.3,3444.7,3.0602]
[1719793652036,0.21086329,3445.2,3444.7,3.50697523]
[1719793652432,3.0,3445.3,3444.7,3.50697523]
[1719793652661,0.21085858,3445.2,3444.7,3.50697523]
[1719793654625,0.21085858,3445.2,3444.7,3.44892]
[1719793654829,0.21085858,3445.2,3444.7,3.0602]
[1719793655480,3.0,3445.3,3444.7,3.0602]
[1719793655760,0.21087973,3445.2,3444.7,3.0602]
[1719793655964,3.0,3445.3,3444.7,3.0602]
[1719793655965,0.21087971,3445.1,3444.7,3.0602]
[1719793656125,3.0,3445.3,3444.7,3.0602]
[1719793656327,0.21087818,3445.2,3444.7,3.0602]
[1719793658574,0.21087628,3445.1,3444.7,3.0602]
[1719793658766,0.21088104,3445.0,3444.7,3.0602]
[1719793658974,3.0,3445.3,3444.7,3.0602]
[1719793659142,0.21088024,3445.2,3444.7,3.0602]
[1719793661783,3.0,3445.3,3444.7,3.0602]
[1719793661958,0.21088225,3445.2,3444.7,3.0602]
[1719793665187,3.0,3445.3,3444.7,3.0602]
[1719793665188,0.21087259,3445.1,3444.7,3.0602]
[1719793665342,0.21087259,3445.0,3444.7,3.0602]
[1719793665548,3.0,3445.3,3444.7,3.0602]
[1719793665748,0.21087617,3445.2,3444.7,3.0602]
[1719793667500,0.21087617,3445.2,3444.9,3.2581]
[1719793668071,3.0,3445.3,3444.9,3.2581]
[1719793668386,0.21085112,3445.2,3444.9,3.2581]
[1719793670787,0.21085112,3445.2,3445.0,0.05804983]
[1719793671003,0.21085112,3445.2,3445.1,3.3182]
[1719793671181,7.27,3445.4,3445.1,3.73852498]
[1719793671365,7.27,3445.4,3445.3,3.3751]
[1719793671582,3.9962,3446.2,3445.3,3.3751]
[1719793671583,7.27,3445.9,3445.3,3.3751]
[1719793671872,0.21087167,3445.8,3445.3,3.43314336]
[1719793672509,3.21087167,3445.8,3445.3,3.43314336]
[1719793672672,0.21087167,3445.7,3445.3,3.43314336]
[1719793674408,3.0,3445.8,3445.3,3.43314336]
[1719793674714,0.21087345,3445.7,3445.3,3.43314336]
[1719793675217,0.21087345,3445.7,3445.3,3.84314683]
[1719793677539,3.0,3445.8,3445.3,3.84314683]
[1719793677698,0.21084324,3445.6,3445.3,3.84314683]
[1719793677902,3.0,3445.8,3445.3,3.84314683]
[1719793678139,0.21083845,3445.7,3445.4,0.07174063]
[1719793678436,0.21083845,3445.7,3445.3,3.84314683]
[1719793678624,0.21083845,3445.7,3445.4,0.46701468]
[1719793680610,3.0,3445.8,3445.4,0.46701468]
[1719793680921,0.21086945,3445.7,3445.4,0.46701468]
[1719793681114,3.0,3445.8,3445.4,0.46701468]
[1719793681317,0.210868,3445.7,3445.4,0.46701468]
[1719793681509,0.210868,3445.7,3445.5,0.46691147]
[1719793682241,3.0,3445.8,3445.5,0.46691147]
[1719793682536,3.0,3445.8,3444.4,2.90325]
[1719793682537,3.0,3445.8,3445.6,4.0629]
[1719793683431,3.0,3445.8,3445.6,3.2359]
[1719793687184,12.47,3446.3,3445.7,0.88503993]
[1719793687384,0.21090396,3446.2,3445.8,3.12733337]
[1719793687511,7.27,3446.4,3445.8,3.46473334]
[1719793687708,0.21090222,3446.3,3445.9,0.07135746]
[1719793687914,0.21090222,3446.3,3445.8,3.0693]
[1719793688650,3.21090222,3446.3,3445.8,3.0693]
[1719793688860,3.0,3446.3,3445.8,3.0693]
[1719793690079,3.0,3446.3,3445.6,3.2873]
[1719793691932,3.0,3446.3,3445.6,3.69873]
[1719793696680,3.0,3446.3,3445.6,4.52573]
[1719793706776,3.0,3446.3,3445.8,0.827]
[1719793706963,3.0,3446.3,3445.9,3.148]
[1719793708401,12.47,3447.0,3446.2,3.975]
[1719793708402,7.27,3446.8,3446.2,3.975]
[1719793708753,3.0,3446.7,3446.2,3.975]
[1719793710280,3.0,3446.7,3446.2,3.148]
[1719793710483,3.0,3446.7,3446.0,4.1917]
[1719793717587,3.0,3446.7,3446.0,3.3647]
[1719793717813,5.66687,3446.7,3446.0,3.3647]
[1719793718008,5.66687,3446.7,3445.8,4.0809]
[1719793722189,0.21104003,3446.6,3445.8,4.0809]
[1719793723022,3.0884,3446.5,3445.8,4.0809]
[1719793723321,3.0,3446.4,3445.8,4.0809]
[1719793726716,3.0,3446.4,3445.8,4.48899]
[1719793729641,0.21099094,3446.3,3445.8,4.48899]
[1719793729837,3.0,3446.4,3445.8,4.48899]
[1719793730041,0.21098575,3446.3,3445.8,4.48899]
[1719793730406,3.0,3446.4,3445.8,4.48899]
[1719793730611,0.21095227,3446.3,3445.8,4.48899]
[1719793730846,3.0,3446.4,3445.8,4.48899]
[1719793731018,0.21095338,3446.3,3445.8,4.48899]
[1719793733539,3.0,3446.4,3445.8,4.48899]
[1719793733733,0.2109716,3446.3,3445.8,4.48899]
[1719793734645,0.2109716,3446.3,3445.8,1.23509]
[1719793735350,3.0,3446.4,3446.0,0.827]
[1719793735645,3.0,3446.4,3446.1,0.05802991]
[1719793737237,3.0,3446.4,3446.1,3.1794]
[1719793737453,3.0,3446.7,3446.2,0.827]
[1719793737648,0.21098606,3446.6,3446.2,0.827]
[1719793737819,0.21098606,3446.6,3446.2,1.2716539]
[1719793739818,3.0,3446.7,3446.2,1.2716539]
[1719793740022,0.21099149,3446.6,3446.2,1.2716539]
[1719793741350,0.21099149,3446.6,3446.2,0.4446539]
[1719793741526,0.21099149,3446.6,3446.1,3.1794]
[1719793742255,0.21100053,3446.5,3445.7,3.0801]
[1719793742417,3.21100053,3446.5,3445.8,0.827]
[1719793742624,3.21100053,3446.5,3445.8,1.21771]
[1719793742625,0.21100106,3446.4,3445.8,1.21771]
[1719793742947,0.21100106,3446.4,3445.7,3.0801]
[1719793743155,0.827,3446.2,3445.4,3.3638]
[1719793743322,0.827,3446.2,3445.5,0.0715474]
[1719793743323,3.3109,3445.9,3445.5,0.0715474]
[1719793743522,4.47285891,3445.8,3444.9,3.3638]
[1719793743778,0.2109688,3445.7,3444.9,3.3638]
[1719793743941,0.2109688,3445.7,3445.0,0.07188412]
[1719793744141,0.2109688,3445.7,3444.9,3.3638]
[1719793745155,3.827,3445.8,3444.9,3.3638]
[1719793745353,0.2109604,3445.7,3444.9,3.3638]
[1719793745556,0.21095856,3445.6,3444.9,3.3638]
[1719793745795,3.827,3445.8,3445.0,0.07188412]
[1719793745946,0.21095929,3445.7,3445.0,0.07188412]
[1719793746146,0.21095929,3445.7,3444.9,4.60988]
[1719793748465,3.827,3445.8,3444.9,4.60988]
[1719793748665,0.21099529,3445.7,3444.9,4.60988]
[1719793748848,0.21099529,3445.7,3445.0,0.460988]
[1719793749451,3.827,3445.8,3445.0,0.460988]
[1719793751939,3.827,3445.8,3444.9,4.1908]
[1719793752161,3.827,3445.8,3444.9,3.3638]
[1719793752162,0.827,3445.6,3444.9,3.3638]
[1719793752358,3.0,3445.8,3445.0,0.07188412]
[1719793752558,0.827,3445.7,3445.0,0.07188412]
[1719793752763,0.827,3445.7,3444.8,0.827]
[1719793753460,3.3495,3445.6,3444.8,0.827]
[1719793753782,3.3495,3445.6,3444.9,0.07203923]
[1719793758359,4.06715,3445.6,3444.9,0.07203923]
[1719793762395,3.3495,3445.6,3444.9,0.07203923]
[1719793764094,3.3495,3445.6,3444.6,4.2023]
[1719793764301,3.3495,3445.6,3445.0,0.0719763]
[1719793764475,3.3495,3445.6,3444.6,4.2023]
[1719793764676,3.3495,3445.6,3445.1,0.07190718]
[1719793764989,3.3495,3445.6,3444.6,4.2023]
[1719793764990,4.06715,3445.6,3444.6,4.2023]
[1719793765297,3.0,3445.8,3444.3,3.3486]
[1719793765298,0.827,3445.3,3444.3,3.3486]
[1719793765496,3.2894,3445.2,3444.7,0.0721837]
[1719793765661,3.2894,3445.2,3444.3,4.1756]
[1719793765860,3.2894,3445.2,3444.4,0.41756]
[1719793766085,3.2894,3445.2,3444.4,0.48995113]
[1719793780728,3.2894,3445.2,3444.4,0.07239113]
[1719793781621,3.827,3445.1,3444.4,0.07239113]
[1719793781821,0.827,3444.9,3444.4,0.07239113]
[1719793782020,3.0,3445.1,3444.1,3.3405]
[1719793782021,0.827,3444.7,3444.1,3.3405]
[1719793782224,0.827,3444.7,3444.5,0.07233795]
[1719793782531,0.4192,3444.6,3443.8,3.0811]
[1719793782902,0.4192,3444.6,3443.9,0.0727529]
[1719793783422,3.0,3444.7,3443.9,0.8997529]
[1719793784129,3.0,3444.7,3443.9,0.827]
[1719793787201,3.0,3444.7,3443.2,0.28883222]
[1719793787202,3.0,3444.7,3444.2,0.827]
[1719793787402,3.0,3445.0,3444.3,0.48349242]
[1719793787734,3.0,3445.0,3444.2,0.827]
[1719793790033,3.0,3445.0,3444.3,0.05805688]
[1719793790332,3.0,3445.0,3444.2,0.827]
[1719793791602,3.827,3445.0,3444.1,3.2829]
[1719793797937,3.827,3445.0,3443.3,2.90418]
[1719793797938,3.0,3445.0,3444.3,3.0424]
[1719793798145,3.0,3445.0,3444.4,0.38694]
[1719793798354,3.0,3445.0,3444.4,1.21394]
[1719793800112,3.0,3445.0,3444.4,0.827]
[1719793800330,3.0,3445.0,3444.5,0.05805614]
[1719793801507,3.0,3445.0,3444.3,4.0438]
[1719793802158,3.0,3445.0,3444.5,0.827]
[1719793802361,3.0,3445.0,3444.6,0.05805425]
[1719793803057,3.0,3445.0,3444.4,0.05805425]
[1719793803368,3.0,3445.0,3444.4,0.46823968]
[1719793809464,3.0,3445.0,3444.5,0.827]
[1719793809673,7.27,3445.1,3444.6,0.05805243]
[1719793810577,3.1329,3445.3,3444.6,0.05805243]
[1719793810778,3.21103247,3445.2,3444.6,0.05805243]
[1719793810978,3.0,3445.2,3444.6,0.50925622]
[1719793811170,0.21103269,3445.1,3444.6,0.50925622]
[1719793811366,3.0,3445.2,3444.6,0.50925622]
[1719793811549,0.21106612,3445.1,3444.6,0.50925622]
[1719793812148,0.21106612,3445.1,3444.6,0.45120379]
[1719793812356,0.21106612,3445.1,3444.3,4.0438]
[1719793813790,0.827,3444.8,3443.9,3.0392]
[1719793813994,3.2398,3444.5,3443.6,0.827]
[1719793814286,3.2398,3444.5,3443.6,0.38662]
[1719793814463,3.2398,3444.5,3443.3,3.0392]
[1719793814662,3.2398,3444.5,3443.5,0.827]
[1719793814663,0.21103251,3444.4,3443.5,0.827]
[1719793814861,3.2398,3444.5,3443.5,0.827]
[1719793815559,0.827,3444.4,3443.5,0.827]
[1719793816268,0.827,3444.4,3443.6,0.05806751]
[1719793817470,0.827,3444.4,3443.7,0.07053644]
[1719793817655,3.2398,3444.5,3443.7,0.07053644]
[1719793818570,3.2398,3444.5,3443.8,0.05806757]
[1719793818764,3.2398,3444.5,3443.9,0.07042959]
[1719793819169,3.2398,3444.5,3443.8,2.9981]
[1719793819369,3.2398,3444.5,3443.9,0.07042959]
[1719793820388,3.2398,3444.5,3443.9,0.89742959]
[1719793823993,3.2398,3444.5,3443.9,0.07042959]
[1719793830213,3.2398,3444.5,3444.0,0.05806382]
[1719793830682,3.2398,3444.5,3444.1,0.0702926]
[1719793834496,3.2398,3444.5,3443.9,0.827]
[1719793834694,3.2398,3444.5,3444.2,0.07022344]
[1719793834902,3.2398,3444.5,3443.9,0.827]
[1719793835080,3.2398,3444.5,3444.3,0.07015428]
[1719793835280,3.2398,3444.5,3443.9,0.827]
[1719793835482,3.2398,3444.5,3443.9,1.2169]
[1719793835713,3.2398,3444.5,3444.0,0.07036176]
[1719793838382,3.2398,3444.5,3443.7,0.827]
[1719793838582,3.2398,3444.5,3443.8,0.07050143]
[1719793843938,3.0,3445.0,3443.8,0.07050143]
[1719793843939,3.1317,3444.3,3443.8,0.07050143]
[1719793844143,3.1317,3444.3,3443.4,0.827]
[1719793845024,0.827,3444.2,3443.1,3.2836]
[1719793845226,0.827,3444.2,3443.2,0.07091655]
[1719793845227,3.1317,3444.1,3443.2,0.07091655]
[1719793845852,3.1317,3444.1,3443.2,0.89791655]
[1719793846058,3.1317,3444.1,3443.3,0.41815165]
[1719793846345,3.1317,3444.1,3443.4,0.07077816]
[1719793848268,3.1317,3443.9,3443.4,0.07077816]
[1719793848477,3.0637,3443.5,3443.4,0.07077816]
[1719793848641,3.0637,3443.5,3442.5,3.0493]
[1719793848642,3.0637,3443.5,3442.5,3.8763]
[1719793849069,3.0637,3443.5,3442.6,0.07134512]
[1719793849368,0.827,3443.4,3442.5,3.0493]
[1719793849567,3.0782,3443.3,3441.5,2.9093]
[1719793849741,7.27,3443.2,3442.4,0.827]
[1719793849940,7.27,3443.2,3442.5,0.07141434]
[1719793851439,8.097,3443.2,3442.5,0.07141434]
[1719793851793,8.097,3443.2,3442.2,0.827]
[1719793851794,2.9076,3443.1,3442.2,0.827]
[1719793851943,2.9076,3443.1,3442.3,0.0715528]
[1719793852135,0.827,3442.6,3442.3,0.0715528]
[1719793852379,1.10046,3443.1,3441.4,3.96821226]
[1719793852380,0.827,3442.4,3441.4,3.96821226]
[1719793852548,0.827,3442.4,3441.5,0.06970831]
[1719793852762,2.9076,3442.5,3441.6,0.827]
[1719793852962,2.9076,3442.5,3441.7,0.06956978]
[1719793853169,2.9076,3442.5,3441.7,0.47334798]
[1719793854672,2.9076,3442.5,3441.7,0.06956978]
[1719793855067,2.9076,3442.5,3441.5,0.827]
[1719793855574,2.9076,3442.5,3441.6,0.06963905]
[1719793855797,0.827,3442.4,3441.6,0.06963905]
[1719793857624,2.9076,3442.5,3441.7,0.827]
[1719793857909,2.9076,3442.5,3441.8,0.06950053]
[1719793858264,2.9076,3442.5,3441.7,0.827]
[1719793858610,2.9076,3442.5,3441.8,0.06950053]
[1719793858784,2.9076,3442.5,3441.7,0.827]
[1719793858989,2.9076,3442.5,3441.8,0.12759994]
[1719793859194,7.27,3442.6,3442.1,0.827]
[1719793859366,15.4044,3442.9,3442.2,0.05809547]
[1719793859753,3.0,3442.8,3442.2,0.05809547]
[1719793861892,3.0,3442.8,3442.1,1.22341962]
[1719793862089,3.0,3442.8,3441.9,0.827]
[1719793862494,0.827,3442.7,3441.7,0.827]
[1719793862697,0.827,3442.7,3441.5,2.8964]
[1719793862899,0.827,3442.7,3441.8,0.06950053]
[1719793863102,0.827,3442.3,3441.6,0.06963905]
[1719793863270,0.827,3442.3,3441.9,0.06943127]
[1719793863474,0.827,3442.3,3441.5,2.8964]
[1719793863697,0.827,3442.3,3442.0,0.06936203]
[1719793863994,0.827,3442.3,3442.1,0.06929278]
[1719793864311,0.827,3442.3,3441.5,2.8964]
[1719793864497,0.827,3442.3,3441.6,0.53728582]
[1719793864671,0.827,3442.3,3441.6,0.60692487]
[1719793865611,3.1071,3442.6,3441.6,1.43392487]
[1719793865917,0.827,3442.5,3441.6,1.43392487]
[1719793866496,0.827,3442.5,3441.6,0.60692487]
[1719793866497,3.827,3442.5,3441.6,0.60692487]
[1719793866699,1.22041,3442.5,3441.6,0.06963905]
[1719793867031,4.22041,3442.5,3441.6,0.06963905]
[1719793868690,4.22041,3442.5,3441.7,0.827]
[1719793868691,3.0,3442.5,3441.7,0.827]
[1719793868891,3.0,3442.5,3441.7,3.7491]
[1719793869312,3.0,3442.5,3441.8,0.06953739]
[1719793870017,3.0,3442.5,3441.7,3.7491]
[1719793870713,3.0,3442.5,3441.8,0.05810454]
[1719793870920,3.0,3442.5,3441.9,0.38072045]
[1719793873284,3.0,3442.5,3441.7,2.9221]
[1719793873956,3.0,3442.5,3441.8,0.06953739]
[1719793874255,3.0,3442.5,3441.7,2.9221]
[1719793874674,3.0,3442.5,3441.6,0.827]
[1719793874675,7.27,3443.0,3442.5,2.9327]
[1719793874949,7.27,3443.0,3442.6,0.0580886]
[1719793875147,7.27,3443.0,3442.9,0.827]
[1719793875353,7.27,3443.6,3442.9,0.827]
[1719793875502,7.27,3443.6,3442.9,0.89585926]
[1719793875702,7.27,3443.6,3442.9,0.827]
[1719793876306,3.0,3443.5,3442.9,0.827]
[1719793876513,3.0,3443.5,3442.7,0.29907886]
[1719793876710,3.0,3443.5,3442.7,1.12607886]
[1719793877443,3.0,3443.5,3442.8,0.41168675]
[1719793878920,3.0,3443.5,3442.9,0.88508712]
[1719793879136,3.0,3443.5,3443.1,0.827]
[1719793879476,7.27,3443.6,3443.3,0.827]
[1719793881518,7.27,3443.6,3443.0,3.877]
[1719793882059,15.47,3443.9,3443.1,0.06868266]
[1719793882267,4.6297,3443.8,3443.1,0.06868266]
[1719793882757,1.6297,3443.8,3443.1,0.06868266]
[1719793885008,0.827,3443.7,3443.0,3.05]
[1719793885215,0.827,3443.7,3443.1,0.06868266]
[1719793885452,0.54567,3443.6,3443.1,0.06868266]
[1719793886772,0.827,3443.7,3443.1,0.06868266]
[1719793887116,3.827,3443.9,3443.1,0.06868266]
[1719793887441,3.827,3443.9,3443.0,3.05]
[1719793887656,3.827,3443.9,3443.0,3.877]
[1719793887883,1.1097,3443.8,3443.0,3.877]
[1719793888676,1.1097,3443.8,3443.1,0.06863339]
[1719793889143,1.1097,3443.8,3443.0,3.877]
[1719793889545,1.1097,3443.8,3443.1,0.06863339]
[1719793890096,1.1097,3443.8,3443.0,3.877]
[1719793890293,1.13797,3443.7,3443.0,3.877]
[1719793890632,1.13797,3443.7,3443.1,0.06863339]
[1719793891762,2.8943,3443.6,3443.1,0.06863339]
[1719793891932,1.13797,3443.7,3443.1,0.06863339]
[1719793892132,1.13797,3443.7,3442.9,0.827]
[1719793892333,1.13797,3443.7,3443.2,0.06856108]
[1719793892584,1.13797,3443.7,3442.9,0.827]
[1719793892748,1.13797,3443.7,3443.3,0.06849189]
[1719793892953,0.67968073,3443.6,3442.9,0.827]
[1719793893169,1.13797,3443.7,3443.4,0.06842269]
[1719793893374,1.13797,3443.7,3442.9,0.827]
[1719793893817,1.13797,3443.7,3443.0,0.06869949]
[1719793894241,0.827,3443.4,3443.0,0.06869949]
[1719793894586,0.827,3443.4,3442.7,2.8842]
[1719793894745,1.023497,3443.4,3442.7,2.8842]
[1719793894947,1.023497,3443.4,3442.8,0.06883791]
[1719793895980,4.186997,3443.4,3442.8,0.06883791]
[1719793896694,4.186997,3443.4,3442.5,3.8988]
[1719793896911,4.186997,3443.4,3442.9,0.0687687]
[1719793897191,4.186997,3443.4,3442.1,2.9689]
[1719793897192,0.827,3443.0,3442.1,2.9689]
[1719793898475,3.0,3443.1,3442.2,0.827]
[1719793899788,3.0,3443.1,3442.4,0.827]
[1719793902489,3.0,3443.1,3442.8,0.827]
[1719793902870,3.0,3443.4,3442.8,0.827]
[1719793903600,3.0,3443.4,3442.6,0.827]
[1719793903801,5.67112,3443.4,3442.6,0.827]
[1719793904596,5.67112,3443.4,3442.5,3.0728]
[1719793904597,6.49812,3443.4,3442.5,3.0728]
[1719793905163,3.827,3443.4,3442.5,3.0728]
[1719793905367,3.0,3443.4,3442.7,0.827]
[1719793905801,6.0225,3443.4,3442.7,0.827]
[1719793906181,6.0225,3443.4,3442.5,3.8998]
[1719793907797,6.0225,3443.4,3442.6,0.06898878]
[1719793908507,6.0225,3443.4,3442.5,3.8998]
[1719793908866,6.0225,3443.4,3442.6,0.06898878]
[1719793909068,6.0225,3443.4,3442.5,3.8998]
[1719793909276,7.43445,3443.4,3442.6,0.06898878]
[1719793909597,0.827,3443.2,3442.6,0.06898878]
[1719793909785,8.26145,3443.4,3442.3,3.7526]
[1719793909987,8.26145,3443.4,3442.7,0.06892356]
[1719793910168,1.553145,3443.3,3442.5,0.827]
[1719793910365,6.8495,3443.4,3442.5,0.827]
[1719793910594,6.0225,3443.4,3442.5,0.827]
[1719793911193,6.0225,3443.4,3442.6,0.05808934]
[1719793911610,3.0,3443.4,3442.9,0.827]
[1719793911907,3.0,3443.5,3442.9,0.827]
[1719793912067,3.0,3443.5,3442.9,0.88508833]
[1719793912267,3.0,3443.5,3443.1,0.827]
[1719793912497,3.0,3443.5,3442.9,0.88508833]
[1719793913479,7.27,3443.6,3443.4,0.827]
[1719793913692,7.27,3443.6,3443.5,3.19258459]
[1719793913898,2.8884,3444.3,3443.5,3.19258459]
[1719793913899,7.27,3444.2,3443.5,3.19258459]
[1719793914099,7.27,3444.2,3443.6,0.827]
[1719793914797,3.0,3444.1,3443.6,0.827]
[1719793916973,3.0,3444.1,3443.5,3.1242]
[1719793917476,5.15739872,3444.1,3443.2,3.1242]
[1719793917681,2.8884,3444.0,3443.3,0.06849678]
[1719793917903,2.8884,3444.0,3443.2,3.1242]
[1719793918323,0.827,3443.9,3442.4,3.0985]
[1719793918499,0.827,3443.7,3443.3,0.06849634]
[1719793918783,0.827,3443.7,3442.8,0.827]
[1719793918985,0.827,3443.7,3443.4,0.06842714]
[1719793919191,0.827,3443.7,3442.8,0.827]
[1719793919681,0.827,3443.7,3442.9,0.06877315]
[1719793920289,0.827,3443.9,3442.9,0.06877315]
[1719793920904,0.827,3443.9,3443.0,0.827]
[1719793921309,3.827,3443.9,3443.1,0.06863473]
[1719793921482,5.52554,3443.9,3443.0,0.827]
[1719793921890,4.69854,3443.9,3442.5,0.600347]
[1719793922221,11.96854,3443.9,3442.6,0.06892931]
[1719793922584,3.25229392,3443.8,3442.6,0.06892931]
[1719793922784,3.0,3443.7,3442.6,0.06892931]
[1719793922987,3.0702,3443.5,3442.5,0.600347]
[1719793923193,3.0702,3443.5,3442.7,0.06885344]
[1719793923390,3.0702,3443.5,3442.6,0.06892266]
[1719793923629,3.0702,3443.5,3442.8,0.06878422]
[1719793923783,3.0702,3443.5,3442.7,0.06885344]
[1719793923987,3.0702,3443.5,3442.5,0.600347]
[1719793924253,3.0702,3443.5,3442.8,0.06878999]
[1719793924388,3.0702,3443.5,3442.6,0.3698847]
[1719793924902,3.0702,3443.5,3442.7,0.06885921]
[1719793925089,3.0,3443.4,3442.4,3.0985]
[1719793926197,3.0,3443.4,3442.5,0.06899987]
[1719793928035,3.0,3443.4,3442.5,0.12708915]
[1719793928248,3.0,3443.4,3442.6,0.32255892]
[1719793928730,3.0,3443.4,3442.7,0.06886808]
[1719793929222,3.0,3443.4,3442.6,0.32255892]
[1719793929635,3.0,3443.4,3442.7,0.06886808]
[1719793929996,3.0,3443.4,3442.6,0.32255892]
[1719793930396,3.0,3443.4,3442.7,0.06659514]
[1719793930786,3.0,3443.4,3442.6,0.32255892]
[1719793931239,3.0,3443.4,3442.7,0.06662451]
[1719793931527,3.0,3443.4,3442.6,0.32255892]
[1719793931846,3.0,3443.4,3442.7,0.34210589]
[1719793932008,3.0,3443.4,3442.7,0.4087304]
[1719793935445,3.0,3443.4,3442.7,0.34210589]
[1719793942059,3.0,3443.4,3442.8,0.828]
[1719793942729,3.0,3443.4,3443.0,0.828]
[1719793942931,3.0,3443.4,3443.1,0.06634679]
[1719793944619,3.0,3443.4,3442.8,0.828]
[1719793944816,3.0,3443.4,3443.2,0.0662802]
[1719793945016,3.0,3443.4,3442.8,0.828]
[1719793945531,3.0,3443.4,3442.9,0.0664865]
[1719793946051,3.0,3443.4,3442.8,0.828]
[1719793946256,3.0,3443.4,3442.9,0.0664865]
[1719793946556,3.0,3443.4,3442.8,0.828]
[1719793946850,3.0,3443.4,3443.0,0.06641729]
[1719793947057,3.0,3443.4,3442.9,0.0664865]
[1719793947234,3.0,3443.4,3443.1,0.06634809]
[1719793947429,3.0,3443.4,3443.2,0.06627889]
[1719793947640,3.0,3443.4,3442.8,1.22319]
[1719793947840,3.0,3443.4,3442.9,0.0664865]
[1719793948041,3.0,3443.4,3442.8,1.22319]
[1719793948360,3.0,3443.4,3442.9,0.0664865]
[1719793948727,3.0,3443.4,3442.8,1.22319]
[1719793948928,3.0,3443.4,3442.9,0.0664865]
[1719793949130,3.0,3443.4,3442.8,1.22319]
[1719793949352,3.0,3443.4,3442.9,0.0664865]
[1719793949747,3.0,3443.4,3442.8,1.22319]
[1719793949948,3.0,3443.4,3443.0,0.06641904]
[1719793950154,3.0,3443.4,3442.9,0.06648825]
[1719793950462,3.0,3443.4,3443.0,0.06641904]
[1719793950664,3.0,3443.4,3442.8,1.22319]
[1719793951026,3.0,3443.4,3442.9,0.06648825]
[1719793951458,3.0,3443.4,3442.8,1.22319]
[1719793951666,3.0,3443.4,3443.0,0.06641904]
[1719793951964,3.0,3443.4,3443.1,0.06634984]
[1719793952265,3.0,3443.4,3442.8,1.22319]
[1719793952558,3.0,3443.4,3442.9,0.06648825]
[1719793952951,3.0,3443.4,3442.8,1.22319]
[1719793953152,3.0,3443.4,3443.0,0.06641904]
[1719793953465,3.0,3443.4,3442.9,0.06648825]
[1719793953648,3.0,3443.4,3443.0,0.06641904]
[1719793953964,3.0,3443.4,3442.8,1.22319]
[1719793954163,3.0,3443.4,3443.1,0.06634984]
[1719793954459,3.0,3443.4,3442.8,1.22319]
[1719793954460,3.0,3443.4,3443.2,0.06628064]
[1719793954660,3.0,3443.4,3442.8,0.828]
[1719793954866,3.0,3443.4,3442.9,0.06648475]
[1719793955026,3.0,3443.4,3442.8,1.22319]
[1719793955359,3.0,3443.4,3442.9,0.06648475]
[1719793955861,3.0,3443.4,3443.0,0.06641554]
[1719793956031,3.0,3443.4,3442.8,1.22319]
[1719793956364,3.0,3443.4,3442.9,0.06648475]
[1719793956750,3.0,3443.4,3442.5,3.1239]
[1719793956751,3.1654,3443.3,3442.5,3.1239]
[1719793957065,3.1654,3443.3,3442.7,0.828]
[1719793957468,3.1654,3443.3,3442.8,0.06655221]
[1719793957671,3.1654,3443.3,3442.6,0.31239]
[1719793957871,3.1654,3443.3,3442.7,0.828]
[1719793958042,3.1654,3443.3,3442.7,0.89462187]
[1719793958446,3.1654,3443.3,3442.7,1.32771306]
[1719793960648,3.1654,3443.3,3442.7,1.26109119]
[1719793960860,3.1654,3443.3,3442.7,0.828]
[1719793961560,3.1654,3443.3,3442.8,0.0665544]
[1719793961976,3.1654,3443.3,3442.7,0.828]
[1719793962686,3.1654,3443.3,3442.8,0.0665544]
[1719793962868,3.1654,3443.3,3442.7,0.828]
[1719793963167,3.1654,3443.3,3442.8,0.0665544]
[1719793963471,3.1654,3443.3,3442.6,0.828]
[1719793963647,0.21115093,3443.2,3442.6,0.828]
[1719793963988,0.21115093,3443.2,3442.7,0.06662362]
[1719793965019,3.1654,3443.3,3442.7,0.06662362]